bitfinex-derivatives/quotes_SOLF0:USTF0_20241016
["timestamp","ask_amount","ask_price","bid_price","bid_amount"]
[1729120304360,3.2334,154.65,154.62,12.2037]
[1729120306760,3.2334,154.65,154.62,8.97]
[1729120312861,4.46,154.67,154.62,8.97]
[1729120313054,3.2335,154.64,154.62,8.97]
[1729120314962,3.2335,154.64,154.61,12.204]
[1729120326264,3.2339,154.62,154.59,4.6189]
[1729120326464,13.43,154.67,154.61,8.97]
[1729120327264,8.97,154.65,154.61,8.97]
[1729120328365,3.2338,154.62,154.61,8.97]
[1729120338573,3.2338,154.62,154.58,4.6889]
[1729120338775,3.2341,154.61,154.59,8.97]
[1729120350781,3.2341,154.61,154.58,4.6889]
[1729120350782,8.97,154.62,154.57,1.3416]
[1729120351090,8.97,154.59,154.54,4.46]
[1729120351284,3.2351,154.57,154.54,15.44138383]
[1729120370008,3.2351,154.57,154.54,12.20588383]
[1729120370210,3.2351,154.57,154.55,3.2353]
[1729120377709,3.2351,154.57,154.54,12.20588383]
[1729120378012,3.2351,154.57,154.55,3.2353]
[1729120396117,3.2351,154.57,154.54,12.20588383]
[1729120396313,3.2351,154.57,154.54,15.44128383]
[1729120396824,3.2351,154.57,154.54,6.47128383]
[1729120398227,3.2352,154.56,154.54,6.47128383]
[1729120398427,3.2352,154.56,154.54,3.23588383]
[1729120398626,3.2352,154.56,154.53,1.3698]
[1729120399227,3.2352,154.56,154.53,4.59670217]
[1729120400529,100.91190009,154.59,154.53,3.22690217]
[1729120400732,12.2055,154.54,154.49,4.46]
[1729120401026,12.2055,154.54,154.51,3.236]
[1729120401027,8.97,154.54,154.51,3.236]
[1729120401331,3.2358,154.53,154.51,3.26874555]
[1729120401522,8.97,154.53,154.49,5.8981]
[1729120401723,8.97,154.53,154.49,9.13708557]
[1729120402533,3.2362,154.51,154.49,9.13708557]
[1729120403233,3.2362,154.51,154.49,4.67708557]
[1729120404030,3.2362,154.51,154.49,7.91368557]
[1729120409231,4.46,154.56,154.5,3.2363]
[1729120409425,8.97,154.55,154.5,3.2363]
[1729120409827,3.2358,154.53,154.5,3.2363]
[1729120417137,3.2358,154.53,154.5,12.2063]
[1729120417935,3.2358,154.53,154.5,8.97]
[1729120418342,12.2058,154.53,154.49,7.91358557]
[1729120420437,3.236,154.52,154.49,7.91358557]
[1729120438258,3.2358,154.53,154.5,12.2062]
[1729120441462,3.2359,154.53,154.5,3.2362]
[1729120442459,3.236,154.52,154.5,3.2362]
[1729120445552,3.2359,154.53,154.5,3.2362]
[1729120445749,8.97,154.54,154.5,3.2362]
[1729120446550,3.2359,154.52,154.5,3.2362]
[1729120446959,3.2364,154.5,154.49,3.23898557]
[1729120447157,3.2364,154.5,154.47,3.237]
[1729120447466,8.97,154.49,154.47,3.237]
[1729120448558,12.2067,154.49,154.46,3.2372]
[1729120456673,12.2067,154.49,154.46,12.2072]
[1729120462981,1.2518,154.52,154.47,8.97]
[1729120463178,1.2518,154.52,154.47,12.19015794]
[1729120464080,3.2364,154.5,154.47,15.42695794]
[1729120478388,3.2364,154.5,154.47,6.45695794]
[1729120491300,3.2366,154.49,154.47,6.45695794]
[1729120491999,3.2366,154.49,154.47,3.22015794]
[1729120492190,3.2366,154.49,154.46,4.6822]
[1729120492699,3.2366,154.49,154.46,7.97831516]
[1729120495901,3.2366,154.49,154.47,8.97]
[1729120509615,3.2366,154.49,154.46,7.97831516]
[1729120509825,3.2366,154.49,154.47,8.97]
[1729120518829,3.2366,154.49,154.46,16.94831516]
[1729120520629,3.2366,154.49,154.48,8.97]
[1729120520822,3.2363,154.51,154.48,8.97]
[1729120521029,13.43,154.53,154.49,8.97]
[1729120521229,4.46,154.53,154.49,8.97]
[1729120525328,3.2363,154.51,154.49,8.97]
[1729120530339,10.3594,154.59,154.5,8.97]
[1729120530544,4.44,154.57,154.54,8.97]
[1729120530850,4.44,154.57,154.55,8.97]
[1729120531542,3.2353,154.56,154.55,8.97]
[1729120552159,3.2353,154.56,154.53,3.2357]
[1729120552366,3.2353,154.56,154.55,8.97]
[1729120559065,3.2347,154.58,154.55,12.2052]
[1729120559269,3.2347,154.58,154.57,8.97]
[1729120562575,3.2347,154.58,154.56,8.97]
[1729120583484,10.3359,154.65,154.57,8.97]
[1729120583683,8.97,154.66,154.61,8.97]
[1729120583887,4.44,154.65,154.61,8.97]
[1729120584089,3.2334,154.64,154.63,8.97]
[1729120628128,8.97,154.64,154.59,3.16360804]
[1729120628338,8.97,154.63,154.58,8.97]
[1729120628528,100.88888655,154.63,154.59,8.97]
[1729120630136,3.2341,154.61,154.59,8.97]
[1729120638331,3.2337,154.63,154.59,12.2044]
[1729120638537,13.41,154.65,154.59,12.2044]
[1729120639041,3.2338,154.63,154.59,12.2044]
[1729120639337,104.12268655,154.63,154.59,12.2044]
[1729120640435,104.12268655,154.63,154.6,8.97]
[1729120647640,3.2338,154.62,154.58,12.2046]
[1729120655043,3.2341,154.61,154.58,12.2046]
[1729120657144,3.2341,154.61,154.58,3.2346]
[1729120657344,3.2341,154.61,154.59,8.97]
[1729120674665,8.97,154.6,154.45,12.7153512]
[1729120674851,8.97,154.56,154.49,2.7571]
[1729120675153,8.97,154.54,154.49,11.7271]
[1729120675548,3.2359,154.53,154.49,14.9637]
[1729120677556,3.2359,154.53,154.51,8.97]
[1729120677759,3.2359,154.53,154.51,12.16958215]
[1729120682265,13.41,154.55,154.51,3.19958215]
[1729120682467,3.2359,154.52,154.49,14.9636]
[1729120683464,3.2359,154.52,154.5,3.2363]
[1729120691871,3.2358,154.53,154.5,3.2363]
[1729120692672,3.2358,154.53,154.5,12.2063]
[1729120695174,3.2358,154.53,154.5,3.2363]
[1729120697281,3.2361,154.52,154.49,5.9935]
[1729120698479,3.2361,154.52,154.49,2.7571]
[1729120698681,3.2361,154.52,154.5,3.2363]
[1729120710878,13.41,154.55,154.5,3.2363]
[1729120711084,3.2358,154.53,154.5,3.2363]
[1729120712990,8.97,154.52,154.47,66.18726153]
[1729120713190,3.2366,154.49,154.47,66.18726153]
[1729120714786,3.2366,154.49,154.46,3.2371]
[1729120719193,3.2366,154.49,154.47,3.237]
[1729120720294,3.2366,154.49,154.46,3.2371]
[1729120720798,3.2366,154.49,154.45,8.97]
[1729120720983,3.2366,154.49,154.46,3.2371]
[1729120722097,3.237,154.47,154.45,3.2374]
[1729120722297,8.97,154.48,154.44,1.4246]
[1729120722691,4.44,154.47,154.44,1.4246]
[1729120723095,13.41,154.47,154.44,1.4246]
[1729120724202,13.41,154.47,154.41,2.8721]
[1729120724399,13.41,154.47,154.41,11.8421]
[1729120724704,3.238,154.42,154.4,3.24416212]
[1729120724903,3.238,154.42,154.39,3.2385]
[1729120725404,8.97,154.43,154.39,3.30075089]
[1729120725596,4.44,154.44,154.38,8.97]
[1729120725899,8.97,154.43,154.38,12.21862525]
[1729120727499,3.2382,154.42,154.39,3.2385]
[1729120730206,3.2382,154.42,154.38,12.21862525]
[1729120730403,3.2382,154.42,154.39,3.2386]
[1729120730604,3.2382,154.42,154.4,3.2104002]
[1729120731106,3.2384,154.41,154.38,3.2388]
[1729120731307,8.97,154.39,154.27,6.482]
[1729120731499,8.97,154.39,154.34,8.97]
[1729120732003,101.01025489,154.45,154.24,3.18676337]
[1729120732004,8.97,154.35,154.24,3.18676337]
[1729120732301,8.97,154.35,154.17,4.44]
[1729120732302,8.97,154.31,154.26,10.3845]
[1729120732507,8.97,154.31,154.28,3.2408]
[1729120732800,13.41,154.31,154.28,3.2408]
[1729120733005,3.2399,154.34,154.29,3.2406]
[1729120733206,8.97,154.32,154.29,3.2406]
[1729120733599,13.41,154.32,154.29,3.2406]
[1729120735208,13.41,154.32,154.28,8.97]
[1729120735409,13.41,154.32,154.29,3.2407]
[1729120736609,16.6502,154.32,154.28,12.211]
[1729120736802,16.6502,154.32,154.28,3.241]
[1729120737402,3.2405,154.31,154.27,3.2411]
[1729120737607,12.2105,154.31,154.27,12.2111]
[1729120737811,12.2105,154.31,154.27,3.2411]
[1729120738102,3.2406,154.3,154.27,3.2411]
[1729120738698,8.97,154.31,154.27,3.2411]
[1729120738903,12.2104,154.31,154.27,3.2411]
[1729120740007,8.97,154.31,154.26,4.60352991]
[1729120740206,3.2406,154.3,154.26,7.84472991]
[1729120740501,4.44,154.29,154.26,7.84472991]
[1729120741701,7.6809,154.29,154.26,3.18902991]
[1729120741897,8.97,154.28,154.25,1.3408]
[1729120742105,4.44,154.29,154.21,4.44]
[1729120742311,12.2111,154.28,154.24,3.2418]
[1729120743301,12.2111,154.28,154.23,8.97]
[1729120743501,12.2111,154.28,154.25,3.2416]
[1729120743809,12.2111,154.28,154.25,6.54522351]
[1729120744002,12.2111,154.28,154.25,3.2416]
[1729120744511,12.2111,154.28,154.25,6.5400378]
[1729120748210,101.09260488,154.34,154.25,6.5400378]
[1729120748211,3.2407,154.3,154.25,12.2684378]
[1729120748510,8.97,154.32,154.27,8.97]
[1729120748813,3.2406,154.3,154.27,12.2111]
[1729120749017,3.2406,154.3,154.27,6.51036816]
[1729120752404,3.241,154.28,154.27,3.26926816]
[1729120752609,7.681,154.28,154.27,3.26926816]
[1729120754219,4.44,154.28,154.26,4.6397]
[1729120754614,4.44,154.28,154.26,7.92399261]
[1729120756016,4.44,154.28,154.26,4.68279261]
[1729120756219,7.6811,154.28,154.26,4.68279261]
[1729120760425,4.44,154.28,154.26,4.68279261]
[1729120760624,3.2412,154.27,154.26,4.68279261]
[1729120760930,4.44,154.28,154.26,4.68279261]
[1729120761122,7.681,154.28,154.26,4.68279261]
[1729120761326,4.44,154.28,154.26,3.28429261]
[1729120761525,4.44,154.28,154.25,3.2416]
[1729120761725,7.681,154.28,154.25,3.2416]
[1729120762226,7.681,154.28,154.25,6.47683692]
[1729120763130,3.2414,154.26,154.25,3.23523692]
[1729120763429,8.97,154.27,154.24,3.2418]
[1729120763629,7.6811,154.28,154.25,3.2415]
[1729120763831,3.2411,154.28,154.26,3.17009139]
[1729120764129,4.46,154.27,154.26,3.17009139]
[1729120764339,7.7012,154.27,154.26,3.17009139]
[1729120764721,7.7012,154.27,154.24,3.2417]
[1729120765333,7.7012,154.27,154.25,3.27228829]
[1729120765334,4.46,154.27,154.25,3.27228829]
[1729120765534,3.2414,154.26,154.23,3.2418]
[1729120766031,4.46,154.26,154.24,3.2418]
[1729120766332,4.46,154.26,154.25,3.22139179]
[1729120766529,7.7014,154.26,154.25,3.22139179]
[1729120766729,7.7014,154.26,154.23,3.2419]
[1729120769836,3.2414,154.26,154.23,3.2419]
[1729120770136,7.7014,154.26,154.23,3.2419]
[1729120771738,3.2414,154.26,154.23,3.2419]
[1729120771935,7.7014,154.26,154.23,3.2419]
[1729120773834,3.2414,154.26,154.23,3.2419]
[1729120774035,7.7014,154.26,154.23,3.2419]
[1729120776236,7.7014,154.26,154.21,11.8021]
[1729120776444,7.7014,154.26,154.22,8.97]
[1729120776929,7.7014,154.26,154.23,3.2419]
[1729120777936,4.46,154.27,154.24,8.97]
[1729120778142,4.46,154.27,154.24,12.20512252]
[1729120779044,16.6711,154.28,154.25,3.2416]
[1729120783748,8.97,154.28,154.24,3.23512252]
[1729120783945,13.43,154.3,154.26,3.2412]
[1729120784149,13.43,154.3,154.26,3.27985219]
[1729120784349,13.43,154.3,154.26,11.6707]
[1729120784550,13.43,154.3,154.26,14.83961366]
[1729120784752,16.6707,154.3,154.27,3.241]
[1729120788254,7.7007,154.3,154.27,3.241]
[1729120788650,7.7007,154.3,154.27,12.211]
[1729120789755,19.42,154.4,154.29,8.97]
[1729120790054,230.4765,154.42,154.29,8.97]
[1729120790055,110.05307368,154.35,154.29,8.97]
[1729120790256,3.2401,154.33,154.3,3.2404]
[1729120790959,7.6798,154.34,154.31,8.97]
[1729120791353,7.6798,154.34,154.31,12.2103]
[1729120791658,7.6798,154.34,154.31,8.97]
[1729120792568,3.24,154.33,154.31,8.97]
[1729120798766,114.49368985,154.35,154.29,3.2407]
[1729120798961,114.49368985,154.35,154.29,12.2107]
[1729120799268,114.49368985,154.35,154.29,8.97]
[1729120799662,3.2401,154.33,154.3,3.2405]
[1729120800259,114.49368985,154.35,154.29,8.97]
[1729120800463,8.97,154.32,154.26,5.86961366]
[1729120800760,8.97,154.32,154.27,8.97]
[1729120800964,8.97,154.32,154.26,5.86961366]
[1729120801160,8.97,154.32,154.26,14.83961366]
[1729120801563,3.2409,154.29,154.26,18.08081366]
[1729120803669,3.2409,154.29,154.27,3.2412]
[1729120806569,3.2409,154.29,154.26,18.08091366]
[1729120807564,4.44,154.31,154.26,14.83961366]
[1729120807759,3.2411,154.28,154.26,14.83961366]
[1729120811061,3.2406,154.3,154.27,12.211]
[1729120811266,4.44,154.31,154.27,12.211]
[1729120811474,4.44,154.31,154.27,8.97]
[1729120811667,3.2409,154.29,154.27,8.97]
[1729120813070,3.2409,154.29,154.26,18.08081366]
[1729120815277,3.2411,154.28,154.26,14.83961366]
[1729120816472,3.2411,154.28,154.26,18.08101366]
[1729120818681,3.2411,154.28,154.26,15.38031366]
[1729120819276,3.2411,154.28,154.26,12.13891366]
[1729120821688,3.2411,154.28,154.26,15.38031366]
[1729120825988,3.2411,154.28,154.26,12.13891366]
[1729120830199,8.97,154.3,154.26,3.16891366]
[1729120830395,3.2412,154.27,154.25,3.2415]
[1729120830897,3.2412,154.27,154.25,6.51562977]
[1729120831095,3.2412,154.27,154.25,3.2415]
[1729120831597,3.2412,154.27,154.25,6.5169262]
[1729120831801,3.2409,154.29,154.25,6.5169262]
[1729120832093,8.97,154.3,154.25,6.5169262]
[1729120833096,3.2412,154.27,154.25,6.5169262]
[1729120836905,3.2412,154.27,154.25,15.4869262]
[1729120840199,3.2409,154.29,154.26,3.2414]
[1729120844410,3.2409,154.29,154.25,12.2454262]
[1729120845510,3.2409,154.29,154.26,3.2413]
[1729120856018,3.2409,154.29,154.26,12.2113]
[1729120861625,3.241,154.28,154.26,12.2113]
[1729120862128,4.46,154.3,154.25,3.2754262]
[1729120862314,3.2411,154.28,154.25,12.2115]
[1729120862517,3.2411,154.28,154.25,15.47752955]
[1729120863134,3.2409,154.29,154.26,12.2113]
[1729120863321,4.46,154.3,154.26,8.97]
[1729120863621,101.100341,154.31,154.26,8.97]
[1729120863823,105.540341,154.31,154.26,12.1945397]
[1729120864330,4.44,154.33,154.3,8.97]
[1729120864517,4.44,154.33,154.31,8.97]
[1729120864718,4.44,154.33,154.26,7.6645397]
[1729120864719,4.44,154.33,154.32,8.97]
[1729120865024,4.44,154.36,154.32,8.97]
[1729120865718,13.41,154.36,154.31,12.2103]
[1729120865914,13.41,154.36,154.31,8.97]
[1729120865915,3.2399,154.34,154.31,8.97]
[1729120873624,3.2401,154.32,154.31,8.97]
[1729120875327,3.24,154.33,154.31,8.97]
[1729120880636,13.41,154.36,154.31,8.97]
[1729120880936,8.97,154.35,154.29,8.97]
[1729120881438,3.2404,154.31,154.29,8.97]
[1729120882046,3.2406,154.3,154.28,12.2109]
[1729120887349,3.2406,154.3,154.29,8.97]
[1729120889141,3.2406,154.3,154.27,3.2412]
[1729120889339,3.2409,154.29,154.27,12.2112]
[1729120889550,3.2409,154.29,154.27,8.97]
[1729120893954,3.2412,154.28,154.26,3.2245397]
[1729120894251,13.41,154.3,154.25,8.97]
[1729120894446,13.41,154.3,154.25,15.50431969]
[1729120895447,3.2409,154.29,154.25,15.50431969]
[1729120895654,13.41,154.3,154.25,15.50431969]
[1729120896452,3.2412,154.28,154.25,15.50431969]
[1729120902959,3.2412,154.28,154.26,8.97]
[1729120906760,3.2412,154.28,154.26,12.2113]
[1729120906957,7.6806,154.3,154.27,8.97]
[1729120907155,3.2406,154.3,154.27,8.97]
[1729120907756,3.2406,154.3,154.27,12.2111]
[1729120908459,3.2406,154.3,154.27,15.39686613]
[1729120915854,6.4781,154.38,154.28,8.97]
[1729120916060,3.2402,154.32,154.28,8.97]
[1729120916765,3.2402,154.32,154.29,3.2406]
[1729120917070,3.2402,154.32,154.29,15.44002206]
[1729120917262,3.2402,154.32,154.29,6.47002206]
[1729120920269,3.2404,154.31,154.29,6.47002206]
[1729120926769,3.2404,154.31,154.29,3.22942206]
[1729120926975,3.2404,154.31,154.28,12.2109]
[1729120927477,3.2404,154.31,154.28,15.41062373]
[1729120943400,3.2406,154.3,154.28,6.44062373]
[1729120943591,3.2406,154.3,154.28,15.41062373]
[1729120944394,13.41,154.33,154.28,15.41062373]
[1729120944610,3.2404,154.31,154.28,15.41062373]
[1729120945301,3.2404,154.31,154.28,12.16972373]
[1729120945498,3.2404,154.31,154.29,3.2408]
[1729120945896,3.2404,154.31,154.28,12.16972373]
[1729120946097,3.2407,154.3,154.28,12.16972373]
[1729120947400,3.2407,154.3,154.28,15.41072373]
[1729120948897,13.41,154.33,154.28,3.19972373]
[1729120949204,3.2408,154.3,154.28,8.97]
[1729120949398,3.2408,154.3,154.28,12.15243681]
[1729120949903,3.2408,154.29,154.28,3.18243681]
[1729120950106,4.44,154.3,154.26,12.2113]
[1729120950297,13.41,154.3,154.26,8.97]
[1729120950602,3.2411,154.28,154.25,12.2115]
[1729120951404,3.2411,154.28,154.25,15.42439695]
[1729120954707,3.2414,154.27,154.25,3.21289695]
[1729120954907,3.2414,154.27,154.24,14.9983]
[1729120955206,3.2414,154.27,154.25,3.2416]
[1729120955403,3.2414,154.27,154.25,6.51216751]
[1729120960811,8.97,154.29,154.25,15.48216751]
[1729120961011,3.2411,154.28,154.25,15.48216751]
[1729120965813,3.2411,154.28,154.26,3.2414]
[1729120980125,3.2411,154.28,154.25,12.24056751]
[1729120980327,3.2411,154.28,154.25,15.48206751]
[1729120980720,3.2411,154.28,154.25,12.24056751]
[1729120980917,3.2411,154.28,154.26,3.2414]
[1729120987032,3.2411,154.28,154.25,15.48206751]
[1729120988636,13.41,154.3,154.25,15.48206751]
[1729120988826,3.2413,154.27,154.25,6.51206751]
[1729120991232,3.2414,154.26,154.25,3.27056751]
[1729120991432,3.2414,154.26,154.24,6.0284]
[1729120991931,3.2414,154.26,154.24,9.23046145]
[1729121000338,4.44,154.3,154.25,8.97]
[1729121000633,3.2409,154.29,154.26,3.2412]
[1729121000835,3.2409,154.29,154.26,12.2112]
[1729121001230,3.2409,154.29,154.25,3.2416]
[1729121001436,13.41,154.3,154.25,3.2416]
[1729121001636,13.41,154.3,154.24,14.95866145]
[1729121001832,3.2411,154.28,154.25,3.2415]
[1729121002537,3.2409,154.29,154.26,12.2112]
[1729121002738,101.08963452,154.32,154.28,8.97]
[1729121003131,101.08963452,154.32,154.29,3.2406]
[1729121004442,3.2404,154.31,154.29,3.2406]
[1729121004836,101.08963452,154.32,154.28,3.2409]
[1729121005138,101.08963452,154.32,154.26,13.41]
[1729121005139,3.2407,154.3,154.26,13.41]
[1729121005336,8.97,154.31,154.27,3.241]
[1729121005535,3.2408,154.29,154.25,8.97]
[1729121006130,3.2408,154.29,154.26,3.2412]
[1729121006443,3.2408,154.29,154.25,8.97]
[1729121006830,3.2408,154.29,154.26,3.2412]
[1729121007947,3.2408,154.29,154.27,3.2411]
[1729121012846,3.2407,154.3,154.27,3.2411]
[1729121041761,3.2407,154.3,154.27,3.241]
[1729121044960,13.41,154.3,154.24,5.98866145]
[1729121045165,8.97,154.28,154.24,5.98866145]
[1729121045965,3.2413,154.27,154.24,9.23036145]
[1729121047361,3.2413,154.27,154.24,18.20036145]
[1729121061581,4.44,154.3,154.25,8.97]
[1729121061875,13.41,154.3,154.26,3.2413]
[1729121063377,3.241,154.28,154.26,3.2413]
[1729121067783,3.241,154.28,154.25,12.2115]
[1729121080097,13.41,154.3,154.25,12.2115]
[1729121080291,3.2412,154.27,154.25,12.2115]
[1729121081894,3.2411,154.28,154.25,12.2115]
[1729121089206,3.2411,154.28,154.27,8.97]
[1729121099608,3.2411,154.28,154.25,3.2415]
[1729121099810,3.2411,154.28,154.26,8.97]
[1729121100715,4.44,154.3,154.24,5.98866145]
[1729121100913,3.2412,154.27,154.24,9.23036145]
[1729121101117,3.2412,154.27,154.25,8.97]
[1729121102616,3.2412,154.27,154.24,9.23036145]
[1729121103014,3.2412,154.27,154.25,8.97]
[1729121104417,3.2413,154.27,154.25,8.97]
[1729121104619,13.41,154.3,154.25,8.97]
[1729121106411,3.2413,154.27,154.25,8.97]
[1729121110123,3.2414,154.27,154.24,9.23036145]
[1729121110420,3.2414,154.27,154.25,8.97]
[1729121113030,3.2411,154.28,154.24,9.23036145]
[1729121113323,8.97,154.29,154.25,8.97]
[1729121114124,4.44,154.3,154.25,8.97]
[1729121114319,13.41,154.3,154.25,8.97]
[1729121114524,3.2413,154.27,154.25,8.97]
[1729121115717,105.54411792,154.3,154.26,8.97]
[1729121116025,3.2411,154.28,154.26,8.97]
[1729121123323,105.54411792,154.3,154.26,8.97]
[1729121123531,101.10411792,154.3,154.29,8.97]
[1729121124227,104.34471792,154.3,154.29,8.97]
[1729121124421,89.46,154.39,154.29,8.97]
[1729121124618,4.44,154.38,154.29,3.2406]
[1729121124821,8.97,154.35,154.31,8.97]
[1729121125125,4.44,154.34,154.31,8.97]
[1729121125519,3.2399,154.33,154.31,8.97]
[1729121126224,3.2399,154.33,154.32,3.26042063]
[1729121129827,25.9364,154.42,154.32,12.23042063]
[1729121130031,3.2394,154.36,154.33,8.97]
[1729121130337,3.2394,154.36,154.33,12.12998418]
[1729121131027,3.2394,154.36,154.33,15.36988418]
[1729121136133,3.2397,154.34,154.33,3.15998418]
[1729121136335,8.97,154.36,154.29,4.2778]
[1729121136632,8.97,154.36,154.31,8.97]
[1729121137433,3.2398,154.34,154.31,8.97]
[1729121142343,8.97,154.36,154.32,3.20773342]
[1729121142644,3.2399,154.33,154.32,3.20773342]
[1729121143339,8.97,154.36,154.31,8.97]
[1729121143644,3.2404,154.31,154.29,11.7959]
[1729121145747,3.2404,154.31,154.29,15.0366]
[1729121148041,3.2406,154.3,154.29,11.7959]
[1729121154545,4.44,154.34,154.29,15.0365]
[1729121154748,4.44,154.34,154.31,8.97]
[1729121155538,3.2402,154.32,154.31,8.97]
[1729121164256,4.44,154.34,154.31,8.97]
[1729121164451,3.2401,154.33,154.31,8.97]
[1729121164647,4.44,154.34,154.31,8.97]
[1729121164946,3.2399,154.33,154.31,8.97]
[1729121165556,3.2401,154.32,154.31,8.97]
[1729121172859,3.2401,154.32,154.29,15.0366]
[1729121194176,3.24,154.33,154.31,8.97]
[1729121194474,3.24,154.33,154.32,3.18514124]
[1729121197378,3.24,154.33,154.3,12.2104]
[1729121197677,3.2401,154.32,154.3,8.97]
[1729121202781,3.2401,154.32,154.29,6.0666]
[1729121209702,3.2401,154.32,154.29,15.0366]
[1729121215804,9.7088,154.51,154.33,3.2399]
[1729121215805,3.2393,154.36,154.33,3.2399]
[1729121216102,4.42,154.37,154.33,3.27069188]
[1729121216303,3.2397,154.35,154.32,8.97]
[1729121216600,3.2397,154.35,154.32,12.26564415]
[1729121217100,3.2397,154.35,154.32,15.50574415]
[1729121222402,3.2397,154.35,154.33,8.97]
[1729121230806,110.01978907,154.38,154.32,3.29564415]
[1729121231007,110.01978907,154.38,154.32,8.97]
[1729121231312,8.97,154.36,154.32,3.238629]
[1729121231612,3.2402,154.32,154.3,8.97]
[1729121234607,3.2402,154.32,154.3,12.2105]
[1729121249020,3.2406,154.3,154.29,2.8259]
[1729121249239,3.2406,154.3,154.27,8.97]
[1729121249414,8.97,154.32,154.27,8.97]
[1729121250222,3.2407,154.3,154.27,12.2111]
[1729121251423,8.97,154.28,154.2,4.42]
[1729121251626,8.97,154.26,154.21,8.97]
[1729121251816,8.97,154.26,154.21,12.21314691]
[1729121252220,8.97,154.26,154.21,3.24314691]
[1729121252430,8.97,154.26,154.21,8.97]
[1729121252729,8.97,154.26,154.21,12.21735921]
[1729121252925,3.2416,154.25,154.22,12.2121]
[1729121253623,3.2416,154.25,154.23,3.25650003]
[1729121256829,3.2416,154.25,154.22,3.2421]
[1729121257324,105.54656371,154.27,154.22,6.52486356]
[1729121257526,3.2416,154.25,154.22,6.52486356]
[1729121277937,108.78786371,154.27,154.24,3.2417]
[1729121278138,114.51656371,154.27,154.22,3.28276356]
[1729121278337,114.51656371,154.27,154.21,8.97]
[1729121279041,114.51656371,154.27,154.21,12.26389782]
[1729121279249,3.2414,154.26,154.24,3.2418]
[1729121280536,3.2414,154.26,154.23,3.242]
[1729121282244,3.2414,154.26,154.22,8.97]
[1729121282438,3.2414,154.26,154.23,3.242]
[1729121282640,3.2414,154.26,154.22,8.97]
[1729121283445,3.2414,154.26,154.24,3.2418]
[1729121283847,114.51656371,154.27,154.24,3.2418]
[1729121283848,104.36786371,154.27,154.24,3.2418]
[1729121284344,6.4793,154.35,154.23,8.97]
[1729121284550,4.42,154.34,154.29,8.97]
[1729121284746,10.79,154.34,154.29,8.97]
[1729121285040,3.2402,154.32,154.29,8.97]
[1729121285242,3.2402,154.32,154.29,15.49379913]
[1729121289041,3.2402,154.32,154.29,6.52379913]
[1729121289248,3.2402,154.32,154.29,15.49379913]
[1729121292044,3.2402,154.32,154.29,6.52379913]
[1729121298252,3.2403,154.31,154.29,6.52379913]
[1729121303660,3.2402,154.32,154.3,8.97]
[1729121303861,4.42,154.35,154.31,8.97]
[1729121304557,4.42,154.35,154.31,12.1849569]
[1729121304764,3.2397,154.34,154.31,15.4252569]
[1729121307566,7.6596,154.35,154.32,3.24]
[1729121309261,7.6596,154.35,154.31,12.1849569]
[1729121309652,7.6596,154.35,154.33,8.97]
[1729121309958,7.6596,154.35,154.32,3.24]
[1729121309959,3.2392,154.37,154.34,8.97]
[1729121310358,3.2392,154.37,154.34,12.2096]
[1729121310557,3.2392,154.37,154.31,4.42]